[Event "*** Titled Tuesday Blitz"]
[Site "Chess.com"]
[Date "2020.12.29"]
[Round "3"]
[White "Itk04"]
[Black "Walter_White_Poland"]
[Result "1-0"]
[WhiteElo "2490"]
[BlackElo "2321"]
[TimeControl "180+1"]
[EndTime "10:26:47 PST"]
[Termination "Itk04 won on time"]

1. e4 {[%clk 0:03:00.9]} 1... e5 {[%clk 0:02:58.6]} 2. Nf3 {[%clk 0:03:00.7]}
2... Nc6 {[%clk 0:02:58.5]} 3. Bc4 {[%clk 0:03:01.2]} 3... Nf6 {[%clk
0:02:57.9]} 4. d3 {[%clk 0:03:01.5]} 4... d5 {[%clk 0:02:58]} 5. exd5 {[%clk
0:03:01]} 5... Nxd5 {[%clk 0:02:58.2]} 6. O-O {[%clk 0:03:01.7]} 6... Nb6 {[%clk
0:02:58]} 7. Bb5 {[%clk 0:03:01.4]} 7... Bd6 {[%clk 0:02:57.6]} 8. Re1 {[%clk
0:03:00.8]} 8... f6 {[%clk 0:02:57.6]} 9. d4 {[%clk 0:03:00.2]} 9... O-O {[%clk
0:02:53.6]} 10. Bxc6 {[%clk 0:02:58.4]} 10... bxc6 {[%clk 0:02:54.5]} 11. dxe5
{[%clk 0:02:58.8]} 11... fxe5 {[%clk 0:02:54.9]} 12. Nc3 {[%clk 0:02:50.1]}
12... Bg4 {[%clk 0:02:48.4]} 13. Ne4 {[%clk 0:02:44.2]} 13... Bxf3 {[%clk
0:02:42.2]} 14. gxf3 {[%clk 0:02:45.1]} 14... Qh4 {[%clk 0:02:23.3]} 15. c4
{[%clk 0:02:34.1]} 15... c5 {[%clk 0:01:23.3]} 16. Ng3 {[%clk 0:02:14.7]} 16...
Qxc4 {[%clk 0:01:10.8]} 17. Be3 {[%clk 0:02:06]} 17... Qf7 {[%clk 0:01:00]} 18.
Rc1 {[%clk 0:02:00.2]} 18... Qxa2 {[%clk 0:00:53.6]} 19. Bxc5 {[%clk 0:01:55.6]}
19... Bxc5 {[%clk 0:00:35.3]} 20. Rxc5 {[%clk 0:01:56.5]} 20... Qxb2 {[%clk
0:00:35.5]} 21. Rxc7 {[%clk 0:01:53.6]} 21... Rad8 {[%clk 0:00:32.2]} 22. Qe2
{[%clk 0:01:50.6]} 22... Nd5 {[%clk 0:00:15.6]} 23. Rxg7+ {[%clk 0:01:28.6]}
23... Kxg7 {[%clk 0:00:11.3]} 24. Qxb2 {[%clk 0:01:29.5]} 1-0

[Event "*** Titled Tuesday Blitz"]
[Site "Chess.com"]
[Date "2020.12.29"]
[Round "3"]
[White "torsten64"]
[Black "fmshawnrl123"]
[Result "0-1"]
[WhiteElo "2127"]
[BlackElo "2755"]
[TimeControl "180+1"]
[EndTime "10:26:47 PST"]
[Termination "fmshawnrl123 won by resignation"]

1. d4 {[%clk 0:03:00.9]} 1... Nf6 {[%clk 0:03:00.1]} 2. c4 {[%clk 0:02:59.8]}
2... e6 {[%clk 0:03:00.2]} 3. Nf3 {[%clk 0:02:58.6]} 3... d5 {[%clk 0:03:00.1]}
4. cxd5 {[%clk 0:02:55.2]} 4... exd5 {[%clk 0:03:01]} 5. Nc3 {[%clk 0:02:54.2]}
5... Bb4 {[%clk 0:03:01.1]} 6. Bg5 {[%clk 0:02:53]} 6... h6 {[%clk 0:03:00.6]}
7. Bxf6 {[%clk 0:02:52.1]} 7... Qxf6 {[%clk 0:03:01.5]} 8. e3 {[%clk 0:02:51.9]}
8... O-O {[%clk 0:03:01.7]} 9. Bd3 {[%clk 0:02:50]} 9... Re8 {[%clk 0:03:01.7]}
10. O-O {[%clk 0:02:49]} 10... c6 {[%clk 0:03:00]} 11. Rc1 {[%clk 0:02:47.8]}
11... Bg4 {[%clk 0:02:59.9]} 12. Bb1 {[%clk 0:02:43.9]} 12... Nd7 {[%clk
0:02:58.6]} 13. Qd3 {[%clk 0:02:41.5]} 13... Nf8 {[%clk 0:02:57.6]} 14. Ne5
{[%clk 0:02:40.2]} 14... Be6 {[%clk 0:02:57]} 15. a3 {[%clk 0:02:37.2]} 15...
Bd6 {[%clk 0:02:56]} 16. f4 {[%clk 0:02:35.6]} 16... g6 {[%clk 0:02:56.6]} 17.
b4 {[%clk 0:02:31.5]} 17... a5 {[%clk 0:02:56]} 18. Na2 {[%clk 0:02:02.5]} 18...
axb4 {[%clk 0:02:55.4]} 19. Nxb4 {[%clk 0:02:01.3]} 19... Qg7 {[%clk 0:02:46.9]}
20. Qb3 {[%clk 0:01:56.5]} 20... f6 {[%clk 0:02:38.1]} 21. Ned3 {[%clk
0:01:55.1]} 21... Bf5 {[%clk 0:02:37.8]} 22. Nc5 {[%clk 0:01:54.6]} 22... Bxb1
{[%clk 0:02:30.5]} 23. Rxb1 {[%clk 0:01:45.1]} 23... Bxc5 {[%clk 0:02:30.4]} 24.
dxc5 {[%clk 0:01:44.7]} 24... Qe7 {[%clk 0:02:31.3]} 25. Rfc1 {[%clk 0:01:41.3]}
25... Qxe3+ {[%clk 0:02:30.6]} 26. Qxe3 {[%clk 0:01:40.1]} 26... Rxe3 {[%clk
0:02:31.5]} 27. Nc2 {[%clk 0:01:39.3]} 27... Rc3 {[%clk 0:02:30.3]} 28. Rxb7
{[%clk 0:01:37.7]} 28... Raxa3 {[%clk 0:02:30.4]} 29. Nxa3 {[%clk 0:01:16.1]}
29... Rxc1+ {[%clk 0:02:31.3]} 30. Kf2 {[%clk 0:01:16.4]} 30... Rxc5 {[%clk
0:02:31.5]} 31. Rc7 {[%clk 0:01:13.8]} 31... Ne6 {[%clk 0:02:25.5]} 32. Re7
{[%clk 0:01:11.8]} 32... Nxf4 {[%clk 0:02:25.1]} 33. Nb1 {[%clk 0:01:09.7]}
33... Kf8 {[%clk 0:02:23.1]} 34. Rh7 {[%clk 0:01:08]} 34... h5 {[%clk
0:02:22.8]} 35. Nd2 {[%clk 0:01:07]} 35... Ne6 {[%clk 0:02:22]} 36. Nf3 {[%clk
0:01:04.5]} 36... Rc2+ {[%clk 0:02:19.5]} 37. Kg3 {[%clk 0:01:00.8]} 37... d4
{[%clk 0:02:17.5]} 38. Nh4 {[%clk 0:01:00.1]} 38... Rc3+ {[%clk 0:02:10.9]} 39.
Kf2 {[%clk 0:00:57.7]} 39... Nf4 {[%clk 0:02:10.7]} 40. g3 {[%clk 0:00:55]}
40... Nd3+ {[%clk 0:02:09.4]} 41. Ke2 {[%clk 0:00:54.5]} 41... Ne5 {[%clk
0:02:08.6]} 42. Rc7 {[%clk 0:00:44.5]} 42... c5 {[%clk 0:02:08.3]} 43. Ng2
{[%clk 0:00:41.7]} 43... Rc2+ {[%clk 0:02:06.7]} 44. Kf1 {[%clk 0:00:40.6]}
44... d3 {[%clk 0:02:03.5]} 45. Nf4 {[%clk 0:00:40]} 45... Rc1+ {[%clk
0:02:00.1]} 46. Kf2 {[%clk 0:00:39.1]} 46... d2 {[%clk 0:02:01]} 47. Ne6+ {[%clk
0:00:36.3]} 47... Kg8 {[%clk 0:02:00.7]} 0-1

[Event "*** Titled Tuesday Blitz"]
[Site "Chess.com"]
[Date "2020.12.29"]
[Round "3"]
[White "kirillshevchenko"]
[Black "hurricane7791"]
[Result "1-0"]
[WhiteElo "2877"]
[BlackElo "2634"]
[TimeControl "180+1"]
[EndTime "10:26:49 PST"]
[Termination "kirillshevchenko won by resignation"]

1. e4 {[%clk 0:03:00.9]} 1... c5 {[%clk 0:02:59.3]} 2. Nf3 {[%clk 0:02:51.7]}
2... Nc6 {[%clk 0:02:58.9]} 3. Nc3 {[%clk 0:02:49.2]} 3... e5 {[%clk 0:02:58.8]}
4. Bc4 {[%clk 0:02:47]} 4... Be7 {[%clk 0:02:56.7]} 5. d3 {[%clk 0:02:47.2]}
5... d6 {[%clk 0:02:57.1]} 6. Nd2 {[%clk 0:02:44.2]} 6... Nf6 {[%clk 0:02:57.2]}
7. Nf1 {[%clk 0:02:44.7]} 7... Bg4 {[%clk 0:02:57.6]} 8. f3 {[%clk 0:02:44.4]}
8... Be6 {[%clk 0:02:58.5]} 9. Ne3 {[%clk 0:02:44.9]} 9... O-O {[%clk
0:02:58.7]} 10. O-O {[%clk 0:02:44.6]} 10... Nd7 {[%clk 0:02:56.2]} 11. a3
{[%clk 0:02:40.9]} 11... Nb6 {[%clk 0:02:56.1]} 12. Ba2 {[%clk 0:02:36.9]} 12...
Bg5 {[%clk 0:02:54.5]} 13. Ned5 {[%clk 0:02:30]} 13... Bxc1 {[%clk 0:02:53.9]}
14. Rxc1 {[%clk 0:02:29.7]} 14... Kh8 {[%clk 0:02:44.5]} 15. f4 {[%clk
0:02:20.6]} 15... exf4 {[%clk 0:02:37.2]} 16. Nxf4 {[%clk 0:02:20.7]} 16... Bxa2
{[%clk 0:02:34.1]} 17. Nxa2 {[%clk 0:02:21.6]} 17... d5 {[%clk 0:02:27.4]} 18.
Nc3 {[%clk 0:02:21]} 18... dxe4 {[%clk 0:02:24.3]} 19. Nxe4 {[%clk 0:02:19.6]}
19... c4 {[%clk 0:02:14.7]} 20. Qh5 {[%clk 0:02:05.3]} 20... h6 {[%clk
0:02:00.9]} 21. Kh1 {[%clk 0:01:38.8]} 21... cxd3 {[%clk 0:01:53.3]} 22. Nxd3
{[%clk 0:01:37.9]} 22... Qd5 {[%clk 0:01:43.9]} 23. Qxd5 {[%clk 0:01:29.6]}
23... Nxd5 {[%clk 0:01:42.3]} 24. Nd6 {[%clk 0:01:30.5]} 24... b6 {[%clk
0:01:18.8]} 25. Nxf7+ {[%clk 0:01:17.9]} 25... Kg8 {[%clk 0:01:18.3]} 26. Nd6
{[%clk 0:01:18.4]} 26... Rxf1+ {[%clk 0:01:15.6]} 27. Rxf1 {[%clk 0:01:18.9]}
27... Rd8 {[%clk 0:01:15.8]} 28. Nf5 {[%clk 0:01:12.1]} 28... Rf8 {[%clk
0:01:03.3]} 29. Kg1 {[%clk 0:01:11.9]} 29... Re8 {[%clk 0:01:00.9]} 30. Re1
{[%clk 0:01:05]} 30... Rf8 {[%clk 0:00:48.3]} 31. Ne3 {[%clk 0:01:04.1]} 31...
Re8 {[%clk 0:00:44.2]} 32. Nxd5 {[%clk 0:01:03.7]} 1-0

[Event "*** Titled Tuesday Blitz"]
[Site "Chess.com"]
[Date "2020.12.29"]
[Round "3"]
[White "LiderChessAcademy"]
[Black "swimmerchess"]
[Result "1-0"]
[WhiteElo "2621"]
[BlackElo "2806"]
[TimeControl "180+1"]
[EndTime "10:26:51 PST"]
[Termination "LiderChessAcademy won on time"]

1. d4 {[%clk 0:03:00.9]} 1... Nf6 {[%clk 0:02:59.3]} 2. c4 {[%clk 0:02:59.6]}
2... g6 {[%clk 0:02:59.4]} 3. Nf3 {[%clk 0:02:58.8]} 3... Bg7 {[%clk 0:03:00]}
4. g3 {[%clk 0:02:58.9]} 4... O-O {[%clk 0:03:00.8]} 5. Bg2 {[%clk 0:02:59]}
5... d6 {[%clk 0:03:01.7]} 6. Nc3 {[%clk 0:02:57.7]} 6... Nbd7 {[%clk
0:03:02.5]} 7. O-O {[%clk 0:02:57.3]} 7... e5 {[%clk 0:03:03.4]} 8. e4 {[%clk
0:02:57]} 8... exd4 {[%clk 0:03:03.6]} 9. Nxd4 {[%clk 0:02:57.5]} 9... Re8
{[%clk 0:03:04.5]} 10. h3 {[%clk 0:02:54.4]} 10... a6 {[%clk 0:03:04.2]} 11. Be3
{[%clk 0:02:46]} 11... Rb8 {[%clk 0:03:03]} 12. Qc2 {[%clk 0:02:44.6]} 12... c5
{[%clk 0:02:58.7]} 13. Nde2 {[%clk 0:02:44.4]} 13... b5 {[%clk 0:02:58.9]} 14.
Rad1 {[%clk 0:02:36.1]} 14... Qe7 {[%clk 0:02:48.7]} 15. cxb5 {[%clk 0:02:12.2]}
15... axb5 {[%clk 0:02:48.4]} 16. Nf4 {[%clk 0:02:11.8]} 16... Bb7 {[%clk
0:02:44.8]} 17. Nfd5 {[%clk 0:01:49.4]} 17... Nxd5 {[%clk 0:02:39.8]} 18. Nxd5
{[%clk 0:01:48]} 18... Bxd5 {[%clk 0:02:14]} 19. exd5 {[%clk 0:01:43.6]} 19...
b4 {[%clk 0:02:07.2]} 20. Rfe1 {[%clk 0:01:37.8]} 20... Qf6 {[%clk 0:02:06.6]}
21. Bc1 {[%clk 0:01:33.2]} 21... h5 {[%clk 0:02:04.8]} 22. h4 {[%clk 0:01:26]}
1-0

[Event "*** Titled Tuesday Blitz"]
[Site "Chess.com"]
[Date "2020.12.29"]
[Round "3"]
[White "ChessLover0108"]
[Black "CheckThis4"]
[Result "0-1"]
[WhiteElo "2753"]
[BlackElo "2546"]
[TimeControl "180+1"]
[EndTime "10:26:54 PST"]
[Termination "CheckThis4 won by checkmate"]

1. d4 {[%clk 0:02:54.9]} 1... d5 {[%clk 0:02:59.4]} 2. Nf3 {[%clk 0:02:54.4]}
2... Nf6 {[%clk 0:02:59.1]} 3. c4 {[%clk 0:02:54.7]} 3... e6 {[%clk 0:02:59.3]}
4. Nc3 {[%clk 0:02:55.3]} 4... Bb4 {[%clk 0:02:58.5]} 5. Bg5 {[%clk 0:02:55.7]}
5... dxc4 {[%clk 0:02:58.1]} 6. e4 {[%clk 0:02:52.3]} 6... c5 {[%clk 0:02:58.2]}
7. e5 {[%clk 0:02:46.5]} 7... cxd4 {[%clk 0:02:57.2]} 8. Nxd4 {[%clk 0:02:47.4]}
8... Qa5 {[%clk 0:02:55.2]} 9. exf6 {[%clk 0:02:35.7]} 9... Bxc3+ {[%clk
0:02:55.1]} 10. bxc3 {[%clk 0:02:35.3]} 10... Qxg5 {[%clk 0:02:55.6]} 11. fxg7
{[%clk 0:02:25.6]} 11... Qxg7 {[%clk 0:02:55.3]} 12. g3 {[%clk 0:02:22.8]} 12...
Nc6 {[%clk 0:02:46.4]} 13. Qa4 {[%clk 0:02:15.1]} 13... Bd7 {[%clk 0:02:43.6]}
14. Qxc4 {[%clk 0:02:06.2]} 14... Nxd4 {[%clk 0:02:41]} 15. cxd4 {[%clk
0:02:07.1]} 15... Bc6 {[%clk 0:02:29.7]} 16. Rg1 {[%clk 0:02:05]} 16... O-O
{[%clk 0:02:29.4]} 17. Rd1 {[%clk 0:01:58.2]} 17... Rac8 {[%clk 0:02:27.7]} 18.
Qb4 {[%clk 0:01:53.6]} 18... Rfd8 {[%clk 0:02:23.4]} 19. Bg2 {[%clk 0:01:49.7]}
19... Bxg2 {[%clk 0:02:21]} 20. Rxg2 {[%clk 0:01:50.6]} 20... Rc2 {[%clk
0:02:15.7]} 21. Qxb7 {[%clk 0:01:36.9]} 21... Qg5 {[%clk 0:01:46.3]} 22. Kf1
{[%clk 0:00:31.6]} 22... Rc1 {[%clk 0:01:32.2]} 23. Rxc1 {[%clk 0:00:07.7]}
23... Qxc1+ {[%clk 0:01:31.2]} 24. Ke2 {[%clk 0:00:08.6]} 24... Qc2+ {[%clk
0:01:22.8]} 25. Kf1 {[%clk 0:00:06.9]} 25... Qd1# {[%clk 0:01:22.3]} 0-1

[Event "*** Titled Tuesday Blitz"]
[Site "Chess.com"]
[Date "2020.12.29"]
[Round "3"]
[White "BelaKis"]
[Black "Alekseyviktorovich"]
[Result "1-0"]
[WhiteElo "2146"]
[BlackElo "2322"]
[TimeControl "180+1"]
[EndTime "10:26:58 PST"]
[Termination "BelaKis won on time"]

1. Nf3 {[%clk 0:03:00.9]} 1... d5 {[%clk 0:02:59.4]} 2. g3 {[%clk 0:02:59.6]}
2... c6 {[%clk 0:02:58.6]} 3. Bg2 {[%clk 0:03:00.2]} 3... Nf6 {[%clk 0:02:57.9]}
4. O-O {[%clk 0:03:01.1]} 4... Bg4 {[%clk 0:02:54]} 5. h3 {[%clk 0:02:59.2]}
5... Bf5 {[%clk 0:02:51.5]} 6. d3 {[%clk 0:02:59]} 6... h6 {[%clk 0:02:49.8]} 7.
Nbd2 {[%clk 0:02:58.9]} 7... e6 {[%clk 0:02:49.7]} 8. a3 {[%clk 0:02:59.3]} 8...
a5 {[%clk 0:02:48.3]} 9. b3 {[%clk 0:02:56.9]} 9... Be7 {[%clk 0:02:44]} 10. Bb2
{[%clk 0:02:56.6]} 10... O-O {[%clk 0:02:42.1]} 11. c4 {[%clk 0:02:46.3]} 11...
b5 {[%clk 0:02:35]} 12. cxb5 {[%clk 0:02:35.1]} 12... cxb5 {[%clk 0:02:34.8]}
13. Nd4 {[%clk 0:02:35.4]} 13... Qb6 {[%clk 0:02:27.7]} 14. Qc2 {[%clk
0:02:12.3]} 14... Bh7 {[%clk 0:02:20.8]} 15. Rfc1 {[%clk 0:02:12]} 15... Nbd7
{[%clk 0:02:07.6]} 16. Qc7 {[%clk 0:02:02.4]} 16... Rfb8 {[%clk 0:01:52.9]} 17.
Qxb6 {[%clk 0:01:49.5]} 17... Rxb6 {[%clk 0:01:48]} 18. Rc2 {[%clk 0:01:30.2]}
18... e5 {[%clk 0:01:38.3]} 19. Nc6 {[%clk 0:01:26.7]} 19... Bd6 {[%clk
0:01:38.4]} 20. Rac1 {[%clk 0:01:12.8]} 20... e4 {[%clk 0:01:29.6]} 21. dxe4
{[%clk 0:01:09]} 1-0

[Event "*** Titled Tuesday Blitz"]
[Site "Chess.com"]
[Date "2020.12.29"]
[Round "3"]
[White "The_filthy"]
[Black "frenchpin"]
[Result "0-1"]
[WhiteElo "2293"]
[BlackElo "2461"]
[TimeControl "180+1"]
[EndTime "10:26:59 PST"]
[Termination "frenchpin won by resignation"]

1. e4 {[%clk 0:03:00.9]} 1... e6 {[%clk 0:03:00.9]} 2. d4 {[%clk 0:03:01.1]}
2... d5 {[%clk 0:03:01.5]} 3. Nc3 {[%clk 0:03:01.7]} 3... Bb4 {[%clk 0:03:01.7]}
4. e5 {[%clk 0:03:02.1]} 4... c5 {[%clk 0:03:02.2]} 5. Bd2 {[%clk 0:03:02.7]}
5... Nc6 {[%clk 0:03:01.6]} 6. Nf3 {[%clk 0:03:01.6]} 6... Nge7 {[%clk
0:02:54.7]} 7. dxc5 {[%clk 0:03:00.1]} 7... Ng6 {[%clk 0:02:43.6]} 8. Bb5 {[%clk
0:02:48.6]} 8... O-O {[%clk 0:02:40.4]} 9. Qe2 {[%clk 0:02:48]} 9... Qc7 {[%clk
0:02:26.9]} 10. Bxc6 {[%clk 0:02:33.5]} 10... bxc6 {[%clk 0:02:15.9]} 11. O-O
{[%clk 0:02:33.1]} 11... a5 {[%clk 0:02:10.9]} 12. Rfe1 {[%clk 0:02:33]} 12...
Bxc5 {[%clk 0:02:05.1]} 13. Ng5 {[%clk 0:02:28.2]} 13... h6 {[%clk 0:01:58.3]}
14. Nf3 {[%clk 0:02:27.8]} 14... Ba6 {[%clk 0:01:56.4]} 15. Qd1 {[%clk
0:02:27.2]} 15... Qb6 {[%clk 0:01:52]} 16. Be3 {[%clk 0:02:20.8]} 16... Bxe3
{[%clk 0:01:50.2]} 17. Rxe3 {[%clk 0:02:20.4]} 17... c5 {[%clk 0:01:46.5]} 18.
Na4 {[%clk 0:02:12.6]} 18... Qc6 {[%clk 0:01:42.5]} 19. b3 {[%clk 0:02:12]}
19... Rfd8 {[%clk 0:01:31.9]} 20. Rc3 {[%clk 0:02:07.8]} 20... c4 {[%clk
0:01:18.6]} 21. Nd4 {[%clk 0:02:05.2]} 21... Qc7 {[%clk 0:01:16.9]} 22. f4
{[%clk 0:02:05]} 22... Nxf4 {[%clk 0:01:12.4]} 23. Qf3 {[%clk 0:01:49.3]} 23...
Qxe5 {[%clk 0:01:05.7]} 24. Nc6 {[%clk 0:01:49.4]} 24... Qg5 {[%clk 0:00:47.7]}
25. Nxd8 {[%clk 0:01:40.5]} 25... Rxd8 {[%clk 0:00:46.8]} 26. Rf1 {[%clk
0:01:30.9]} 26... d4 {[%clk 0:00:36.5]} 27. Qxf4 {[%clk 0:01:24.4]} 27... Qxf4
{[%clk 0:00:37.4]} 28. Rxf4 {[%clk 0:01:24.3]} 28... dxc3 {[%clk 0:00:38.3]} 29.
Nxc3 {[%clk 0:01:21.8]} 29... Rd2 {[%clk 0:00:32.7]} 30. Rf2 {[%clk 0:01:20.6]}
30... Rd4 {[%clk 0:00:31.5]} 31. Re2 {[%clk 0:01:05.8]} 31... cxb3 {[%clk
0:00:28.6]} 0-1

[Event "*** Titled Tuesday Blitz"]
[Site "Chess.com"]
[Date "2020.12.29"]
[Round "3"]
[White "chessdjw"]
[Black "HackingKid98"]
[Result "0-1"]
[WhiteElo "2620"]
[BlackElo "2435"]
[TimeControl "180+1"]
[EndTime "10:27:01 PST"]
[Termination "HackingKid98 won on time"]

1. e4 {[%clk 0:03:00.9]} 1... c6 {[%clk 0:02:58.1]} 2. d4 {[%clk 0:02:55.9]}
2... d5 {[%clk 0:02:58.1]} 3. exd5 {[%clk 0:02:54.1]} 3... cxd5 {[%clk 0:02:59]}
4. Bd3 {[%clk 0:02:54.5]} 4... Nf6 {[%clk 0:02:58.7]} 5. c3 {[%clk 0:02:48.8]}
5... Bg4 {[%clk 0:02:57.9]} 6. Nf3 {[%clk 0:02:30.2]} 6... e6 {[%clk 0:02:54.5]}
7. Bf4 {[%clk 0:01:54.2]} 7... Bd6 {[%clk 0:02:52.2]} 8. Bxd6 {[%clk 0:01:51.3]}
8... Qxd6 {[%clk 0:02:53.1]} 9. Nbd2 {[%clk 0:01:51.7]} 9... O-O {[%clk
0:02:51.8]} 10. h3 {[%clk 0:01:51.3]} 10... Bh5 {[%clk 0:02:50.4]} 11. O-O
{[%clk 0:01:50.8]} 11... Nc6 {[%clk 0:02:49.3]} 12. Re1 {[%clk 0:01:50.8]} 12...
Rfc8 {[%clk 0:02:48.2]} 13. a4 {[%clk 0:01:48.8]} 13... Rab8 {[%clk 0:02:47.2]}
14. a5 {[%clk 0:01:40.7]} 14... Qc7 {[%clk 0:02:40]} 15. Qa4 {[%clk 0:01:39.8]}
15... a6 {[%clk 0:02:25.9]} 16. Ne5 {[%clk 0:01:37.6]} 16... Nxe5 {[%clk
0:02:24.2]} 17. dxe5 {[%clk 0:01:37.2]} 17... Nd7 {[%clk 0:02:23.6]} 18. Qh4
{[%clk 0:01:32]} 18... Bg6 {[%clk 0:02:23.3]} 19. Bxg6 {[%clk 0:01:32]} 19...
hxg6 {[%clk 0:02:24.2]} 20. Nf3 {[%clk 0:01:29.7]} 20... Qc4 {[%clk 0:02:22.1]}
21. Nd4 {[%clk 0:01:15.3]} 21... b6 {[%clk 0:02:18.4]} 22. Qe7 {[%clk
0:00:35.7]} 22... Nf8 {[%clk 0:02:14.4]} 23. axb6 {[%clk 0:00:30.3]} 23... Rxb6
{[%clk 0:02:15.3]} 24. Qa3 {[%clk 0:00:27]} 24... Rcb8 {[%clk 0:02:10.9]} 25.
Re2 {[%clk 0:00:24.5]} 25... g5 {[%clk 0:02:00.9]} 26. Rc2 {[%clk 0:00:24]}
26... Ng6 {[%clk 0:01:59.1]} 27. b3 {[%clk 0:00:19.4]} 27... Qd3 {[%clk
0:01:56.7]} 28. Re1 {[%clk 0:00:11.5]} 28... Rxb3 {[%clk 0:01:55]} 29. Nxb3
{[%clk 0:00:09.9]} 29... Qxc2 {[%clk 0:01:54.7]} 30. Nd4 {[%clk 0:00:10.4]}
30... Qd2 {[%clk 0:01:50.9]} 31. Re3 {[%clk 0:00:08.8]} 31... Rb2 {[%clk
0:01:48.7]} 32. Re2 {[%clk 0:00:03.8]} 32... Qd1+ {[%clk 0:01:47]} 33. Kh2
{[%clk 0:00:03]} 33... Rxe2 {[%clk 0:01:46.7]} 0-1

[Event "*** Titled Tuesday Blitz"]
[Site "Chess.com"]
[Date "2020.12.29"]
[Round "3"]
[White "Michaelson_11"]
[Black "Skatchkov_V"]
[Result "0-1"]
[WhiteElo "2210"]
[BlackElo "2499"]
[TimeControl "180+1"]
[EndTime "10:27:02 PST"]
[Termination "Skatchkov_V won by checkmate"]

1. e4 {[%clk 0:03:00.9]} 1... e5 {[%clk 0:02:58.4]} 2. Nf3 {[%clk 0:03:00.9]}
2... d5 {[%clk 0:02:58.8]} 3. Nxe5 {[%clk 0:02:55.1]} 3... Bd6 {[%clk
0:02:58.8]} 4. d4 {[%clk 0:02:52]} 4... dxe4 {[%clk 0:02:58.4]} 5. Nc4 {[%clk
0:02:49.6]} 5... Nf6 {[%clk 0:02:57.6]} 6. Be2 {[%clk 0:02:48]} 6... O-O {[%clk
0:02:57.5]} 7. O-O {[%clk 0:02:47.8]} 7... Nc6 {[%clk 0:02:57.7]} 8. c3 {[%clk
0:02:45.3]} 8... Bf5 {[%clk 0:02:56.6]} 9. Bg5 {[%clk 0:02:44.6]} 9... Be7
{[%clk 0:02:33.1]} 10. Ne3 {[%clk 0:02:36.7]} 10... Bg6 {[%clk 0:02:31.4]} 11.
h4 {[%clk 0:02:32.8]} 11... h6 {[%clk 0:02:25.1]} 12. Bxf6 {[%clk 0:02:32.5]}
12... Bxf6 {[%clk 0:02:26]} 13. h5 {[%clk 0:02:33.4]} 13... Bh7 {[%clk
0:02:26.5]} 14. f4 {[%clk 0:02:25.7]} 14... exf3 {[%clk 0:02:24.8]} 15. Bxf3
{[%clk 0:02:15.3]} 15... Nxd4 {[%clk 0:02:17.4]} 16. cxd4 {[%clk 0:02:02.1]}
16... Bxd4 {[%clk 0:02:03.8]} 17. Qb3 {[%clk 0:01:53.4]} 17... Re8 {[%clk
0:01:59.8]} 18. Re1 {[%clk 0:00:58.7]} 18... Qg5 {[%clk 0:01:56.8]} 19. Na3
{[%clk 0:00:36.1]} 19... Bxe3+ {[%clk 0:01:34.7]} 20. Kf1 {[%clk 0:00:35]} 20...
Bc5 {[%clk 0:01:33]} 21. Qb5 {[%clk 0:00:14.1]} 21... c6 {[%clk 0:01:24.1]} 22.
Qc4 {[%clk 0:00:11.7]} 22... b5 {[%clk 0:01:21.4]} 23. Qb3 {[%clk 0:00:04.4]}
23... Qh4 {[%clk 0:01:20.1]} 24. Re2 {[%clk 0:00:02.3]} 24... Qh1# {[%clk
0:01:19.7]} 0-1

[Event "*** Titled Tuesday Blitz"]
[Site "Chess.com"]
[Date "2020.12.29"]
[Round "3"]
[White "zaur-mammadov"]
[Black "Leo_C"]
[Result "0-1"]
[WhiteElo "2706"]
[BlackElo "2354"]
[TimeControl "180+1"]
[EndTime "10:27:03 PST"]
[Termination "Leo_C won by resignation"]

1. e4 {[%clk 0:03:00.9]} 1... c6 {[%clk 0:02:59.6]} 2. c4 {[%clk 0:03:00.7]}
2... d5 {[%clk 0:02:59]} 3. cxd5 {[%clk 0:03:01.6]} 3... cxd5 {[%clk 0:02:58.5]}
4. exd5 {[%clk 0:03:02.5]} 4... Nf6 {[%clk 0:02:57.9]} 5. Bb5+ {[%clk 0:03:02]}
5... Nbd7 {[%clk 0:02:55.5]} 6. Nc3 {[%clk 0:03:01.5]} 6... a6 {[%clk
0:02:55.6]} 7. Be2 {[%clk 0:03:00.3]} 7... b5 {[%clk 0:02:55.1]} 8. Bf3 {[%clk
0:03:00.4]} 8... Bb7 {[%clk 0:02:48.3]} 9. d4 {[%clk 0:03:01]} 9... Nb6 {[%clk
0:02:46.3]} 10. Nge2 {[%clk 0:03:01.1]} 10... Nbxd5 {[%clk 0:02:45.7]} 11. Qb3
{[%clk 0:03:00.9]} 11... e6 {[%clk 0:02:44.1]} 12. O-O {[%clk 0:03:01]} 12...
Be7 {[%clk 0:02:43.4]} 13. a4 {[%clk 0:03:01.2]} 13... b4 {[%clk 0:02:34.3]} 14.
Bg5 {[%clk 0:02:52.6]} 14... O-O {[%clk 0:02:13.4]} 15. Bxf6 {[%clk 0:02:50.8]}
15... Bxf6 {[%clk 0:02:09.2]} 16. Nxd5 {[%clk 0:02:50.5]} 16... Bxd5 {[%clk
0:02:05.6]} 17. Bxd5 {[%clk 0:02:51]} 17... Qxd5 {[%clk 0:02:05.6]} 18. Qxb4
{[%clk 0:02:51.5]} 18... Rab8 {[%clk 0:02:01.5]} 19. Qd2 {[%clk 0:02:51.5]}
19... e5 {[%clk 0:01:55.1]} 20. Rfd1 {[%clk 0:02:41.5]} 20... exd4 {[%clk
0:01:54.3]} 21. Nf4 {[%clk 0:02:32.8]} 21... Qb3 {[%clk 0:01:37.2]} 22. Nd3
{[%clk 0:02:33]} 22... g6 {[%clk 0:01:30.4]} 23. g3 {[%clk 0:02:33.2]} 23... Bg7
{[%clk 0:01:29.9]} 24. Ra3 {[%clk 0:02:32.6]} 24... Qc4 {[%clk 0:01:17.5]} 25.
Rc1 {[%clk 0:02:28.4]} 25... Qd5 {[%clk 0:01:17.3]} 26. b4 {[%clk 0:02:27.8]}
26... Rfc8 {[%clk 0:01:15.7]} 27. Raa1 {[%clk 0:02:27.5]} 27... Rc3 {[%clk
0:01:13.1]} 28. Rxc3 {[%clk 0:02:20.7]} 28... dxc3 {[%clk 0:01:11.8]} 29. Qc2
{[%clk 0:02:21.6]} 29... Qc4 {[%clk 0:01:07.1]} 30. Re1 {[%clk 0:02:18]} 30...
Rd8 {[%clk 0:01:00.2]} 31. Re3 {[%clk 0:02:18.1]} 31... h5 {[%clk 0:00:56]} 32.
h4 {[%clk 0:02:17.6]} 32... Bh6 {[%clk 0:00:52.2]} 33. Rf3 {[%clk 0:02:17.7]}
33... Qe4 {[%clk 0:00:50.1]} 34. Kg2 {[%clk 0:02:15.6]} 34... Bg7 {[%clk
0:00:40.7]} 35. b5 {[%clk 0:02:04.4]} 35... Rd6 {[%clk 0:00:37.9]} 36. Qb3
{[%clk 0:01:36.7]} 36... Rxd3 {[%clk 0:00:29.5]} 37. Qxf7+ {[%clk 0:01:36.6]}
37... Kh7 {[%clk 0:00:29.6]} 38. bxa6 {[%clk 0:01:36.8]} 38... Rxf3 {[%clk
0:00:23.5]} 39. Qxf3 {[%clk 0:01:36.6]} 39... Qxf3+ {[%clk 0:00:21.2]} 40. Kxf3
{[%clk 0:01:37.5]} 40... Bd4 {[%clk 0:00:21.4]} 41. a7 {[%clk 0:01:38.3]} 0-1